fUST/lending_fUST_20250814
["ID","MTS","AMOUNT","RATE_DAILY","PERIOD"]
[379050638,1755101469052,-267.68268484,0.00021095,2]
[379050639,1755101469061,-460.0,0.00021095,2]
[379050640,1755101469070,-460.0,0.00021095,2]
[379050641,1755101469079,-460.0,0.00021095,2]
[379050642,1755101469088,-845.51,0.00021095,2]
[379050643,1755101469098,-460.0,0.00021095,2]
[379050644,1755101469107,-882.55,0.00021095,2]
[379050645,1755101469117,-858.51,0.00021095,2]
[379050646,1755101469126,-460.0,0.00021095,2]
[379050647,1755101469135,-460.0,0.00021095,2]
[379050648,1755101469144,-460.0,0.00021095,2]
[379050649,1755101469153,-1053.85,0.00021095,2]
[379050650,1755101469162,-460.0,0.00021095,2]
[379050651,1755101469172,-460.0,0.00021095,2]
[379050652,1755101469181,-460.0,0.00021095,2]
[379050653,1755101469192,-541.41,0.00021095,2]
[379050654,1755101469201,-460.0,0.00021095,2]
[379050655,1755101469210,-460.0,0.00021095,2]
[379050656,1755101469219,-460.0,0.00021095,2]
[379050657,1755101469229,-460.0,0.00021095,2]
[379050658,1755101469238,-460.0,0.00021095,2]
[379050659,1755101469247,-460.0,0.00021095,2]
[379050660,1755101469256,-460.0,0.00021095,2]
[379050661,1755101469265,-699.32,0.00021095,2]
[379050662,1755101469275,-460.0,0.00021095,2]
[379050663,1755101469285,-460.0,0.00021095,2]
[379050664,1755101469294,-464.24710867,0.00021095,2]
[379050665,1755101469303,-460.0,0.00021095,2]
[379050666,1755101469312,-460.0,0.00021095,2]
[379050667,1755101469321,-460.0,0.00021095,2]
[379050668,1755101469330,-460.0,0.00021095,2]
[379050669,1755101469340,-460.0,0.00021095,2]
[379050670,1755101469349,-460.0,0.00021095,2]
[379050671,1755101469359,-460.0,0.00021095,2]
[379050672,1755101469368,-460.0,0.00021095,2]
[379050673,1755101469378,-460.0,0.00021095,2]
[379050674,1755101469387,-460.0,0.00021095,2]
[379050675,1755101469396,-460.0,0.00021095,2]
[379050676,1755101469405,-460.0,0.00021095,2]
[379050677,1755101469415,-703.16,0.00021095,2]
[379050678,1755101469424,-460.0,0.00021095,2]
[379050679,1755101469434,-460.0,0.00021095,2]
[379050680,1755101469443,-701.16,0.00021095,2]
[379050681,1755101469453,-948.1,0.00021095,2]
[379050682,1755101469462,-941.35,0.00021095,2]
[379050683,1755101469474,-460.0,0.00021095,2]
[379050684,1755101469483,-460.0,0.00021095,2]
[379050685,1755101469492,-460.0,0.00021095,2]
[379050686,1755101469502,-762.82,0.00021095,2]
[379050687,1755101469512,-844.92,0.00021095,2]
[379050688,1755101469521,-565.36,0.00021095,2]
[379050689,1755101469531,-460.0,0.00021095,2]
[379050690,1755101469543,-460.0,0.00021095,2]
[379050691,1755101469553,-460.0,0.00021095,2]
[379050692,1755101469563,-460.0,0.00021095,2]
[379050693,1755101469573,-486.12,0.00021095,2]
[379050694,1755101469582,-460.0,0.00021095,2]
[379050695,1755101469592,-460.0,0.00021095,2]
[379050696,1755101469602,-1077.76,0.00021095,2]
[379050697,1755101469611,-4161.77,0.00021095,2]
[379050698,1755101469621,-460.0,0.00021095,2]
[379050699,1755101469630,-460.0,0.00021095,2]
[379050700,1755101469640,-460.0,0.00021095,2]
[379050701,1755101469649,-707.61,0.00021095,2]
[379050702,1755101469658,-460.0,0.00021095,2]
[379050703,1755101469668,-460.0,0.00021095,2]
[379050704,1755101469677,-605.75,0.00021095,2]
[379050705,1755101469687,-460.0,0.00021095,2]
[379050706,1755101469696,-368.17307132,0.00021095,2]
[379050707,1755101469705,-460.0,0.00021095,2]
[379050708,1755101469715,-8328.58,0.00021095,2]
[379050709,1755101469724,-460.0,0.00021095,2]
[379050710,1755101469733,-512.26,0.00021095,2]
[379050711,1755101469743,-788.9,0.00021095,2]
[379050712,1755101469752,-1171.67,0.00021095,2]
[379050713,1755101469761,-960.06,0.00021095,2]
[379050714,1755101469772,-1469.32,0.00021095,2]
[379050715,1755101469782,-460.0,0.00021095,2]
[379050716,1755101469794,-801.23,0.00021095,2]
[379050717,1755101469803,-460.0,0.00021095,2]
[379050718,1755101469814,-460.0,0.00021095,2]
[379050719,1755101469823,-460.0,0.00021095,2]
[379050720,1755101469832,-460.0,0.00021095,2]
[379050721,1755101469842,-702.93,0.00021095,2]
[379050722,1755101469854,-460.0,0.00021095,2]
[379050723,1755101469982,-505.81,0.00021095,2]
[379050724,1755101469992,-460.0,0.00021095,2]
[379050725,1755101470002,-982.95,0.00021095,2]
[379050726,1755101470011,-460.0,0.00021095,2]
[379050727,1755101470020,-731.73,0.00021095,2]
[379050728,1755101470030,-460.0,0.00021095,2]
[379050729,1755101470040,-460.0,0.00021095,2]
[379050730,1755101470049,-460.0,0.00021095,2]
[379050731,1755101470059,-976.41,0.00021095,2]
[379050732,1755101470068,-460.0,0.00021095,2]
[379050733,1755101470078,-3927.56,0.00021095,2]
[379050734,1755101470087,-460.0,0.00021095,2]
[379050735,1755101470097,-460.0,0.00021095,2]
[379050736,1755101470106,-519.18,0.00021095,2]
[379050737,1755101470115,-460.0,0.00021095,2]
[379050738,1755101470125,-572.82,0.00021095,2]
[379050739,1755101470134,-460.0,0.00021095,2]
[379050740,1755101470143,-460.0,0.00021095,2]
[379050741,1755101470152,-460.0,0.00021095,2]
[379050742,1755101470161,-460.0,0.00021095,2]
[379050743,1755101470171,-460.0,0.00021095,2]
[379050744,1755101470180,-460.0,0.00021095,2]
[379050745,1755101470189,-595.06,0.00021095,2]
[379050746,1755101470198,-4546.09,0.00021095,2]
[379050747,1755101470207,-460.0,0.00021095,2]
[379050748,1755101470217,-792.01,0.00021095,2]
[379050749,1755101470226,-460.0,0.00021095,2]
[379050750,1755101470235,-460.0,0.00021095,2]
[379050751,1755101470244,-460.0,0.00021095,2]
[379050752,1755101470253,-460.0,0.00021095,2]
[379050753,1755101470262,-2656.85,0.00021095,2]
[379050754,1755101470272,-460.0,0.00021095,2]
[379050755,1755101470281,-460.0,0.00021095,2]
[379050756,1755101470292,-460.0,0.00021095,2]
[379050757,1755101470302,-800.85,0.00021095,2]
[379050758,1755101470312,-1070.19,0.00021095,2]
[379050759,1755101470321,-460.0,0.00021095,2]
[379050760,1755101470331,-460.0,0.00021095,2]
[379050761,1755101470340,-460.0,0.00021095,2]
[379050762,1755101470350,-701.9,0.00021095,2]
[379050763,1755101470360,-460.0,0.00021095,2]
[379050764,1755101470370,-460.0,0.00021095,2]
[379050765,1755101470379,-1750.46,0.00021095,2]
[379050766,1755101470390,-460.0,0.00021095,2]
[379050767,1755101470399,-848.78,0.00021095,2]
[379050768,1755101470408,-460.0,0.00021095,2]
[379050769,1755101470418,-597.47422798,0.00021095,2]
[379050770,1755101470428,-460.0,0.00021095,2]
[379050771,1755101470438,-460.0,0.00021095,2]
[379050772,1755101470448,-460.0,0.00021095,2]
[379050773,1755101470458,-3119.29,0.00021095,2]
[379050774,1755101470468,-1296.19,0.00021095,2]
[379050775,1755101470478,-613.21,0.00021095,2]
[379050776,1755101470487,-1428.08,0.00021095,2]
[379050777,1755101470497,-460.0,0.00021095,2]
[379050778,1755101470507,-965.16,0.00021095,2]
[379050779,1755101470517,-4237.64,0.00021095,2]
[379050780,1755101470530,-460.0,0.00021095,2]
[379050781,1755101470542,-460.0,0.00021095,2]
[379050782,1755101470553,-974.49,0.00021095,2]
[379050783,1755101470563,-460.0,0.00021095,2]
[379050784,1755101470573,-460.0,0.00021095,2]
[379050785,1755101470583,-1980.3,0.00021095,2]
[379050786,1755101470593,-460.0,0.00021095,2]
[379050787,1755101470602,-666.67,0.00021095,2]
[379050788,1755101470612,-460.0,0.00021095,2]
[379050789,1755101470622,-460.0,0.00021095,2]
[379050790,1755101470631,-978.01,0.00021095,2]
[379050791,1755101470641,-4436.23,0.00021095,2]
[379050792,1755101470651,-460.0,0.00021095,2]
[379050793,1755101470660,-2457.62,0.00021095,2]
[379050794,1755101470670,-567.51,0.00021095,2]
[379050795,1755101470680,-460.0,0.00021095,2]
[379050796,1755101470690,-460.0,0.00021095,2]
[379050797,1755101470699,-460.0,0.00021095,2]
[379050798,1755101470709,-528.03,0.00021095,2]
[379050799,1755101470719,-3502.61,0.00021095,2]
[379050800,1755101470728,-600.0,0.00021368,2]
[379050801,1755101470738,-460.0,0.00021369,2]
[379050802,1755101470747,-321.15783731,0.00021369,2]
[379050803,1755101470756,-571.60943932,0.00021369,2]
[379050804,1755101470766,-460.0,0.00021369,2]
[379050805,1755101470779,-565.93895172,0.00021369,2]
[379050806,1755101470789,-831.07,0.00021369,2]
[379050807,1755101470798,-460.0,0.00021369,2]
[379050808,1755101470808,-460.0,0.00021369,2]
[379050809,1755101470818,-460.0,0.00021369,2]
[379050810,1755101470827,-572.68,0.00021369,2]
[379050811,1755101470837,-460.0,0.00021369,2]
[379050812,1755101470847,-656.93,0.00021369,2]
[379050813,1755101470856,-460.0,0.00021369,2]
[379050814,1755101470866,-467.85,0.00021369,2]
[379050815,1755101470875,-460.0,0.00021369,2]
[379050816,1755101470884,-460.0,0.00021369,2]
[379050817,1755101470893,-460.0,0.00021369,2]
[379050818,1755101470902,-460.0,0.00021369,2]
[379050819,1755101470912,-460.0,0.00021369,2]
[379050820,1755101470921,-464.54,0.00021369,2]
[379050821,1755101470931,-522.0,0.00021369,2]
[379050822,1755101470940,-460.0,0.00021369,2]
[379050823,1755101470949,-460.0,0.00021369,2]
[379050824,1755101470959,-460.0,0.00021369,2]
[379050825,1755101470968,-455.8,0.00021369,2]
[379050826,1755101470977,-460.0,0.00021369,2]
[379050827,1755101470987,-328.01,0.00021369,2]
[379050828,1755101470996,-460.0,0.00021369,2]
[379050829,1755101471005,-519.8,0.00021369,2]
[379050830,1755101471014,-460.0,0.00021369,2]
[379050831,1755101471026,-460.0,0.00021369,2]
[379050832,1755101471035,-1095.68,0.00021369,2]
[379050833,1755101471045,-460.0,0.00021369,2]
[379050834,1755101471054,-460.0,0.00021369,2]
[379050835,1755101471063,-460.0,0.00021369,2]
[379050836,1755101471072,-460.0,0.00021369,2]
[379050837,1755101471081,-460.0,0.00021369,2]
[379050838,1755101471090,-460.0,0.00021369,2]
[379050839,1755101471100,-460.0,0.00021369,2]
[379050840,1755101471109,-460.0,0.00021369,2]
[379050841,1755101471118,-460.0,0.00021369,2]
[379050842,1755101471127,-460.0,0.00021369,2]
[379050843,1755101471136,-571.78,0.00021369,2]
[379050844,1755101471146,-460.0,0.00021369,2]
[379050845,1755101471155,-3084.82,0.00021369,2]
[379050846,1755101471164,-460.0,0.00021369,2]
[379050847,1755101471173,-460.0,0.00021369,2]
[379050848,1755101471183,-460.0,0.00021369,2]
[379050849,1755101471198,-556.29,0.00021369,2]
[379050850,1755101471208,-460.0,0.00021369,2]
[379050851,1755101471217,-460.0,0.00021369,2]
[379050852,1755101471227,-915.49,0.00021369,2]
[379050853,1755101471236,-927.18,0.00021369,2]
[379050854,1755101471245,-460.0,0.00021369,2]
[379050855,1755101471254,-460.0,0.00021369,2]
[379050856,1755101471264,-460.0,0.00021369,2]
[379050857,1755101471273,-460.0,0.00021369,2]
[379050858,1755101471282,-460.0,0.00021369,2]
[379050859,1755101471292,-460.0,0.00021369,2]
[379050860,1755101471301,-554.1,0.00021369,2]
[379050861,1755101471311,-460.0,0.00021369,2]
[379050862,1755101471320,-845.51,0.00021369,2]
[379050863,1755101471330,-460.0,0.00021369,2]
[379050864,1755101471339,-882.55,0.00021369,2]
[379050865,1755101471348,-858.51,0.00021369,2]
[379050866,1755101471357,-460.0,0.00021369,2]
[379050867,1755101471367,-460.0,0.00021369,2]
[379050868,1755101471376,-460.0,0.00021369,2]
[379050869,1755101471385,-1053.85,0.00021369,2]
[379050870,1755101471394,-460.0,0.00021369,2]
[379050871,1755101471404,-460.0,0.00021369,2]
[379050872,1755101471413,-460.0,0.00021369,2]
[379050873,1755101471422,-541.41,0.00021369,2]
[379050874,1755101471431,-460.0,0.00021369,2]
[379050875,1755101471441,-460.0,0.00021369,2]
[379050876,1755101471450,-460.0,0.00021369,2]
[379050877,1755101471460,-460.0,0.00021369,2]
[379050878,1755101471469,-411.89645101,0.00021369,2]
[379050879,1755101471479,-460.0,0.00021369,2]
[379050880,1755101471488,-699.32,0.00021369,2]
[379050881,1755101471499,-460.0,0.00021369,2]
[379050882,1755101471508,-460.0,0.00021369,2]
[379050883,1755101471518,-460.0,0.00021369,2]
[379050884,1755101471527,-460.0,0.00021369,2]
[379050885,1755101471537,-460.0,0.00021369,2]
[379050886,1755101471547,-460.0,0.00021369,2]
[379050887,1755101471556,-460.0,0.00021369,2]
[379050888,1755101471566,-460.0,0.00021369,2]
[379050889,1755101471575,-460.0,0.00021369,2]
[379050890,1755101471584,-460.0,0.00021369,2]
[379050891,1755101471593,-460.0,0.00021369,2]
[379050892,1755101471603,-276.50281729,0.00021369,2]
[379050893,1755101471612,-460.0,0.00021369,2]
[379050894,1755101471621,-703.16,0.00021369,2]
[379050895,1755101471631,-460.0,0.00021369,2]
[379050896,1755101471640,-460.0,0.00021369,2]
[379050897,1755101471649,-701.16,0.00021369,2]
[379050898,1755101471659,-948.1,0.00021369,2]
[379050899,1755101471668,-941.35,0.00021369,2]
[379050900,1755101471678,-460.0,0.00021369,2]
[379050901,1755101471688,-460.0,0.00021369,2]
[379050902,1755101471697,-762.82,0.00021369,2]
[379050903,1755101471707,-460.0,0.00021369,2]
[379050904,1755101471717,-844.92,0.00021369,2]
[379050905,1755101471726,-565.36,0.00021369,2]
[379050906,1755101471736,-460.0,0.00021369,2]
[379050907,1755101471745,-460.0,0.00021369,2]
[379050908,1755101471755,-291.24768508,0.00021369,2]
[379050909,1755101471766,-460.0,0.00021369,2]
[379050910,1755101471779,-486.12,0.00021369,2]
[379050911,1755101471788,-460.0,0.00021369,2]
[379050912,1755101471797,-460.0,0.00021369,2]
[379050913,1755101471807,-1077.76,0.00021369,2]
[379050914,1755101471819,-4161.77,0.00021369,2]
[379050915,1755101471828,-460.0,0.00021369,2]
[379050916,1755101471837,-460.0,0.00021369,2]
[379050917,1755101471850,-707.61,0.00021369,2]
[379050918,1755101471860,-460.0,0.00021369,2]
[379050919,1755101471869,-460.0,0.00021369,2]
[379050920,1755101471878,-605.75,0.00021369,2]
[379050921,1755101471887,-460.0,0.00021369,2]
[379050922,1755101471896,-460.0,0.00021369,2]
[379050923,1755101471906,-8328.58,0.00021369,2]
[379050924,1755101471915,-460.0,0.00021369,2]
[379050925,1755101471924,-512.26,0.00021369,2]
[379050926,1755101471933,-788.9,0.00021369,2]
[379050927,1755101471943,-1171.67,0.00021369,2]
[379050928,1755101471952,-960.06,0.00021369,2]
[379050929,1755101471961,-1469.32,0.00021369,2]
[379050930,1755101471971,-460.0,0.00021369,2]
[379050931,1755101471980,-801.23,0.00021369,2]
[379050932,1755101471989,-460.0,0.00021369,2]
[379050933,1755101471998,-460.0,0.00021369,2]
[379050934,1755101472008,-460.0,0.00021369,2]
[379050935,1755101472018,-460.0,0.00021369,2]
[379050936,1755101472027,-702.93,0.00021369,2]
[379050937,1755101472037,-460.0,0.00021369,2]
[379050938,1755101472046,-505.81,0.00021369,2]
[379050939,1755101472056,-212.62640939,0.00021369,2]
[379050940,1755101472065,-982.95,0.00021369,2]
[379050941,1755101472074,-460.0,0.00021369,2]
[379050942,1755101472084,-731.73,0.00021369,2]
[379050943,1755101472093,-460.0,0.00021369,2]
[379050944,1755101472102,-460.0,0.00021369,2]
[379050945,1755101472111,-460.0,0.00021369,2]
[379050946,1755101472121,-976.41,0.00021369,2]
[379050947,1755101472130,-460.0,0.00021369,2]
[379050948,1755101472139,-460.0,0.00021369,2]
[379050949,1755101472148,-3927.56,0.00021369,2]
[379050950,1755101472158,-460.0,0.00021369,2]
[379050951,1755101472167,-519.18,0.00021369,2]
[379050952,1755101472177,-460.0,0.00021369,2]
[379050953,1755101472187,-572.82,0.00021369,2]
[379050954,1755101472196,-460.0,0.00021369,2]
[379050955,1755101472205,-460.0,0.00021369,2]
[379050956,1755101472215,-460.0,0.00021369,2]
[379050957,1755101472225,-460.0,0.00021369,2]
[379050958,1755101472234,-460.0,0.00021369,2]
[379050959,1755101472243,-595.06,0.00021369,2]
[379050960,1755101472252,-4546.09,0.00021369,2]
[379050961,1755101472261,-460.0,0.00021369,2]
[379050962,1755101472271,-792.01,0.00021369,2]
[379050963,1755101472280,-460.0,0.00021369,2]
[379050964,1755101472290,-460.0,0.00021369,2]
[379050965,1755101472298,-460.0,0.00021369,2]
[379050966,1755101472308,-460.0,0.00021369,2]
[379050967,1755101472317,-2656.85,0.00021369,2]
[379050968,1755101472327,-460.0,0.00021369,2]
[379050969,1755101472451,-460.0,0.00021369,2]
[379050970,1755101472461,-800.85,0.00021369,2]
[379050971,1755101472470,-1070.19,0.00021369,2]
[379050972,1755101472480,-460.0,0.00021369,2]
[379050973,1755101472490,-460.0,0.00021369,2]
[379050974,1755101472499,-460.0,0.00021369,2]
[379050975,1755101472508,-701.9,0.00021369,2]
[379050976,1755101472517,-460.0,0.00021369,2]
[379050977,1755101472526,-460.0,0.00021369,2]
[379050978,1755101472536,-1750.46,0.00021369,2]
[379050979,1755101472548,-460.0,0.00021369,2]
[379050980,1755101472559,-848.78,0.00021369,2]
[379050981,1755101472569,-460.0,0.00021369,2]
[379050982,1755101472578,-460.0,0.00021369,2]
[379050983,1755101472589,-460.0,0.00021369,2]
[379050984,1755101472598,-460.0,0.00021369,2]
[379050985,1755101472608,-3119.29,0.00021369,2]
[379050986,1755101472617,-1296.19,0.00021369,2]
[379050987,1755101472627,-613.21,0.00021369,2]
[379050988,1755101472637,-1428.08,0.00021369,2]
[379050989,1755101472647,-460.0,0.00021369,2]
[379050990,1755101472657,-965.16,0.00021369,2]
[379050991,1755101472666,-4237.64,0.00021369,2]
[379050992,1755101472676,-460.0,0.00021369,2]
[379050993,1755101472686,-460.0,0.00021369,2]
[379050994,1755101472695,-974.49,0.00021369,2]
[379050995,1755101472706,-460.0,0.00021369,2]
[379050996,1755101472715,-460.0,0.00021369,2]
[379050997,1755101472725,-1980.3,0.00021369,2]
[379050998,1755101472734,-460.0,0.00021369,2]
[379050999,1755101472744,-666.67,0.00021369,2]
[379051000,1755101472753,-460.0,0.00021369,2]
[379051001,1755101472763,-460.0,0.00021369,2]
[379051002,1755101472776,-978.01,0.00021369,2]
[379051003,1755101472785,-4436.23,0.00021369,2]
[379051004,1755101472799,-460.0,0.00021369,2]
[379051005,1755101472809,-567.51,0.00021369,2]
[379051006,1755101472819,-2457.62,0.00021369,2]
[379051007,1755101472830,-460.0,0.00021369,2]
[379051008,1755101472840,-460.0,0.00021369,2]
[379051009,1755101472850,-460.0,0.00021369,2]
[379051010,1755101472859,-528.03,0.00021369,2]
[379051011,1755101472868,-180.33223578,0.00021458,2]
[379051012,1755101472878,-4070.71701821,0.00021497,2]
[379051013,1755101472887,-450.0,0.00021616,2]
[379051014,1755101472897,-200.0,0.00021639,20]
[379051015,1755101472906,-200.0,0.00021639,20]
[379051016,1755101472915,-200.0,0.00021639,20]
[379051017,1755101472925,-240.0,0.00021639,20]
[379051018,1755101472934,-161.36298793,0.00021642,2]
[379051019,1755101472944,-460.0,0.00021643,2]
[379051020,1755101472953,-460.0,0.00021643,2]
[379051021,1755101472963,-831.07,0.00021643,2]
[379051022,1755101472972,-460.0,0.00021643,2]
[379051023,1755101472981,-460.0,0.00021643,2]
[379051024,1755101472991,-460.0,0.00021643,2]
[379051025,1755101473000,-572.68,0.00021643,2]
[379051026,1755101473009,-305.23104362,0.00021643,2]
[379051027,1755101473019,-656.93,0.00021643,2]
[379051028,1755101473028,-460.0,0.00021643,2]
[379051029,1755101473037,-467.85,0.00021643,2]
[379051030,1755101473046,-410.51,0.00021643,2]
[379051031,1755101473056,-460.0,0.00021643,2]
[379051032,1755101473065,-460.0,0.00021643,2]
[379051033,1755101473076,-460.0,0.00021643,2]
[379051034,1755101473086,-460.0,0.00021643,2]
[379051035,1755101473095,-522.0,0.00021643,2]
[379051036,1755101473104,-460.0,0.00021643,2]
[379051037,1755101473114,-460.0,0.00021643,2]
[379051038,1755101473123,-460.0,0.00021643,2]
[379051039,1755101473133,-460.0,0.00021643,2]
[379051040,1755101473142,-460.0,0.00021643,2]
[379051041,1755101473151,-460.0,0.00021643,2]
[379051042,1755101473162,-460.0,0.00021643,2]
[379051043,1755101473171,-1095.68,0.00021643,2]
[379051044,1755101473181,-460.0,0.00021643,2]
[379051045,1755101473191,-460.0,0.00021643,2]
[379051046,1755101473200,-460.0,0.00021643,2]
[379051047,1755101473210,-460.0,0.00021643,2]
[379051048,1755101473219,-460.0,0.00021643,2]
[379051049,1755101473228,-460.0,0.00021643,2]
[379051050,1755101473238,-460.0,0.00021643,2]
[379051051,1755101473247,-460.0,0.00021643,2]
[379051052,1755101473256,-460.0,0.00021643,2]
[379051053,1755101473265,-460.0,0.00021643,2]
[379051054,1755101473276,-571.78,0.00021643,2]
[379051055,1755101473285,-460.0,0.00021643,2]
[379051056,1755101473298,-3084.82,0.00021643,2]
[379051057,1755101473308,-582.48450472,0.00021643,2]
[379051058,1755101473318,-460.0,0.00021643,2]
[379051059,1755101473327,-460.0,0.00021643,2]
[379051060,1755101473337,-556.29,0.00021643,2]
[379051061,1755101473347,-460.0,0.00021643,2]
[379051062,1755101473357,-460.0,0.00021643,2]
[379051063,1755101473367,-915.49,0.00021643,2]
[379051064,1755101473377,-927.18,0.00021643,2]
[379051065,1755101473387,-460.0,0.00021643,2]
[379051066,1755101473396,-460.0,0.00021643,2]
[379051067,1755101473406,-460.0,0.00021643,2]
[379051068,1755101473415,-460.0,0.00021643,2]
[379051069,1755101473424,-460.0,0.00021643,2]
[379051070,1755101473433,-460.0,0.00021643,2]
[379051071,1755101473443,-460.0,0.00021643,2]
[379051072,1755101473452,-845.51,0.00021643,2]
[379051073,1755101473461,-460.0,0.00021643,2]
[379051074,1755101473470,-882.55,0.00021643,2]
[379051075,1755101473480,-460.0,0.00021643,2]
[379051076,1755101473489,-858.51,0.00021643,2]
[379051077,1755101473498,-460.0,0.00021643,2]
[379051078,1755101473507,-460.0,0.00021643,2]
[379051079,1755101473517,-1053.85,0.00021643,2]
[379051080,1755101473526,-460.0,0.00021643,2]
[379051081,1755101473536,-460.0,0.00021643,2]
[379051082,1755101473548,-460.0,0.00021643,2]
[379051083,1755101473558,-541.41,0.00021643,2]
[379051084,1755101473568,-460.0,0.00021643,2]
[379051085,1755101473578,-460.0,0.00021643,2]
[379051086,1755101473588,-460.0,0.00021643,2]
[379051087,1755101473597,-460.0,0.00021643,2]
[379051088,1755101473607,-460.0,0.00021643,2]
[379051089,1755101473616,-699.32,0.00021643,2]
[379051090,1755101473626,-460.0,0.00021643,2]
[379051091,1755101473635,-460.0,0.00021643,2]
[379051092,1755101473644,-460.0,0.00021643,2]
[379051093,1755101473654,-460.0,0.00021643,2]
[379051094,1755101473663,-460.0,0.00021643,2]
[379051095,1755101473672,-460.0,0.00021643,2]
[379051096,1755101473681,-460.0,0.00021643,2]
[379051097,1755101473691,-460.0,0.00021643,2]
[379051098,1755101473701,-460.0,0.00021643,2]
[379051099,1755101473711,-379.38586712,0.00021643,2]
[379051100,1755101473721,-460.0,0.00021643,2]
[379051101,1755101473730,-703.16,0.00021643,2]
[379051102,1755101473739,-274.08666461,0.00021643,2]
[379051103,1755101473749,-460.0,0.00021643,2]
[379051104,1755101473759,-701.16,0.00021643,2]
[379051105,1755101473769,-948.1,0.00021643,2]
[379051106,1755101473780,-941.35,0.00021643,2]
[379051107,1755101473791,-460.0,0.00021643,2]
[379051108,1755101473801,-460.0,0.00021643,2]
[379051109,1755101473810,-762.82,0.00021643,2]
[379051110,1755101473821,-460.0,0.00021643,2]
[379051111,1755101473831,-844.92,0.00021643,2]
[379051112,1755101473840,-565.36,0.00021643,2]
[379051113,1755101473851,-460.0,0.00021643,2]
[379051114,1755101473860,-507.75188032,0.00021643,2]
[379051115,1755101473869,-319.52,0.00021643,2]
[379051116,1755101473878,-486.12,0.00021643,2]
[379051117,1755101473888,-187.29,0.00021643,2]
[379051118,1755101473896,-253.53,0.00021643,2]
[379051119,1755101473906,-1077.76,0.00021643,2]
[379051120,1755101473915,-4161.77,0.00021643,2]
[379051121,1755101473924,-460.0,0.00021643,2]
[379051122,1755101473933,-460.0,0.00021643,2]
[379051123,1755101473943,-707.61,0.00021643,2]
[379051124,1755101473952,-460.0,0.00021643,2]
[379051125,1755101473961,-357.99,0.00021643,2]
[379051126,1755101473970,-605.75,0.00021643,2]
[379051127,1755101473979,-460.0,0.00021643,2]
[379051128,1755101473988,-460.0,0.00021643,2]
[379051129,1755101473997,-8328.58,0.00021643,2]
[379051130,1755101474006,-460.0,0.00021643,2]
[379051131,1755101474015,-512.26,0.00021643,2]
[379051132,1755101474024,-788.9,0.00021643,2]
[379051133,1755101474033,-1171.67,0.00021643,2]
[379051134,1755101474044,-960.06,0.00021643,2]
[379051135,1755101474053,-1469.32,0.00021643,2]
[379051136,1755101474063,-460.0,0.00021643,2]
[379051137,1755101474073,-801.23,0.00021643,2]